Cogmind - Beta 10.2 @@@ ROGUE MODE // 2021.07.31 @ 21:22:25 Player: Demise Result: Destroyed by as-86125 with Assembled Blade Performance ------------- Evolutions (0) 0 Regions Visited (2) 400 Robots Destroyed (34) 170 Value Destroyed (713) 713 Prototype IDs (2) 40 Alien Tech Used (0) 0 Bonus (0) 0 TOTAL SCORE: 1323 Bonus ------- None Cogmind --------- Core Integrity 0/250 Matter 264/300 Energy 85/100 System Corruption 0% Temperature Cool (0) Movement Rolling (110) Ox2 Location -10/Mines Parts ------- > --- POWER (1) -------- (None) > --- PROPULSION (2) --- Armored Wheel > --- UTILITY (2) ------ Large Storage Unit Large Storage Unit > --- WEAPON (2) ------- EM Pulse Gun Light Assault Rifle > --- INVENTORY (16) --- Armored Wheel Armored Wheel Large Storage Unit Medium Battery (200) High-capacity Matter Pod (200) Improved Targeting Computer Improved Targeting Computer Light Armor Plating Hacking Suite Hacking Suite Grenade Launcher Grenade Launcher Mining Claw Mining Claw Peak State ------------ > --- POWER ------------ Light Nuclear Core > --- PROPULSION ------- Armored Wheel Armored Wheel > --- UTILITY ---------- Large Storage Unit Large Storage Unit > --- WEAPON ----------- Assault Rifle Light Assault Rifle > --- INVENTORY -------- Armored Wheel Armored Wheel Large Storage Unit Medium Battery High-capacity Matter Pod Improved Targeting Computer Improved Targeting Computer Light Armor Plating Hacking Suite Hacking Suite EM Pulse Gun Light Assault Rifle Grenade Launcher Grenade Launcher Mining Claw Mining Claw [Rating: 13] Favorites ----------- Power Ion Engine Engine Ion Engine Power Core Light Nuclear Core Propulsion Light Treads Treads Light Treads Wheel Armored Wheel Utility Large Storage Unit Device Sensor Array Storage Large Storage Unit Processor Signal Interpreter Weapon Light Assault Rifle Energy Gun Small Laser Ballistic Gun Light Assault Rifle Launcher Grenade Launcher Build | -11 -10 -10 ------- Run | Scr Mat Min Slots Evolved . | . . . Power . | . . . Propulsion . | . . . Utility . | . . . Weapon . | . . . Parts Attached 32 | 4 23 5 Power 2 | . 1 1 Engine 1 | . 1 . Core 1 | . . 1 Reactor . | . . . Propulsion 6 | 2 4 . Treads 4 | 2 2 . Leg . | . . . Wheel 2 | . 2 . Hover . | . . . Flight . | . . . Utility 7 | . 7 . Device 2 | . 2 . Storage 2 | . 2 . Processor 3 | . 3 . Hackware . | . . . Protection . | . . . Artifact . | . . . Weapon 17 | 2 11 4 Energy Gun 2 | 1 . 1 Energy Cannon . | . . . Ballistic Gun 13 | 1 10 2 Ballistic Cannon . | . . . Launcher 2 | . 1 1 Special Weapon . | . . . Impact Weapon . | . . . Slashing Weapon . | . . . Piercing Weapon . | . . . Special Melee Weapon . | . . . Unidentified Prototypes . | . . . Parts Lost 5 | . 1 4 Power 1 | . . 1 Propulsion 2 | . 1 1 Utility . | . . . Weapon 2 | . . 2 Highest Loss Streak 4 | . 1 4 Average Slot Usage (%) 89 | . 86 99 Engine 6 | . 8 . Core 3 | . . 12 Treads 15 | . 20 . Wheel 9 | . 3 27 Device 1 | . 2 . Storage 16 | . 11 28 Processor 7 | . 10 . Ballistic Gun 26 | . 26 27 Naked Turns . | . . . Heaviest Build 42 | 2 40 42 Greatest Support 40 | 3 40 24 Greatest Overweight (x) 1 | . 1 1 Average Overweight (x) . | . . 1 Largest Inventory Capacity 16 | 4 16 16 Average Capacity 10 | 4 9 16 Most Carried 16 | 4 16 16 Average Carried 10 | 2 8 15 Final Capacity 16 | 4 16 16 Final Carried 16 | 4 16 14 Class Distribution -------------------- 100% | Mutant Dominant Class ---------------- Mutant | -10/Materials Mutant | -10/Mines Resources | -11 -10 -10 ----------- Run | Scr Mat Min Matter Collected 1166 | 246 744 176 Remotely 14 | . 14 . Salvage Created 1233 | 79 857 297 Parts 70 | 5 48 17 Haulers Intercepted 2 | . 2 . Recyclers Shooed 3 | . 3 . Parts Field Recycled . | . . . Retrieved Matter . | . . . Parts Self-Destructed . | . . . Prevented . | . . . Kills | -11 -10 -10 ------- Run | Scr Mat Min Combat Hostiles Destroyed 23 | . 15 8 Guns 21 | . 15 6 AOE 2 | . . 2 Classes Destroyed 10 | 2 6 2 Worker 1 | . . 1 Builder 1 | . 1 . Tunneler 2 | 1 . 1 Hauler 2 | . 2 . Recycler 4 | 1 2 1 Operator 2 | . 2 . Watcher 3 | . 3 . Swarmer 5 | . 5 . Grunt 14 | . 10 4 Assembled 4 | . . 4 Best Kill Streak 6 | 2 6 2 Combat Bots Only 4 | . 4 2 Max Kills in Single Turn 2 | 1 2 1 Gunslinging . | . . . Exploded 1 | . . 1 Melee . | . . . Uniques/NPCs Destroyed . | . . . Combat | -11 -10 -10 -------- Run | Scr Mat Min Damage Taken 1256 | . 643 613 Core 273 | . 115 158 Absorbed by Shields . | . . . Core Remaining (%) 100 | 100 . . Volleys Fired 136 | 6 85 45 Largest 2 | 2 2 2 Hottest 60 | 60 40 40 Shots Fired 265 | 12 168 85 Gun 261 | 12 167 82 Cannon . | . . . Launcher 4 | . 1 3 Special . | . . . Kinetic 255 | 6 167 82 Thermal 6 | 6 . . Explosive 4 | . 1 3 Electromagnetic . | . . . Robot Hit Streak 23 | 5 23 9 Robot Miss Streak 5 | 1 3 5 Penetration Max . | . . . Secondary Targets 1 | . . 1 Max Gunslinging Chain 1 | . . 1 Shots Hit Robots 170 | 8 111 51 Core Hits 74 | 3 44 27 Critical Hits 1 | 1 . . Critical Kills . | . . . Critical Parts Destroyed 1 | 1 . . Melee Attacks . | . . . Impact . | . . . Slashing . | . . . Piercing . | . . . Sneak Attacks . | . . . Combat Hostiles . | . . . Follow-up Attacks . | . . . Damage Inflicted 1857 | 87 1174 596 Guns 1786 | 87 1174 525 Cannons . | . . . Explosions 71 | . . 71 Melee . | . . . Ramming . | . . . Kinetic 1716 | 17 1174 525 Thermal 70 | 70 . . Explosive 71 | . . 71 Electromagnetic . | . . . Impact . | . . . Slashing . | . . . Piercing . | . . . Highest Corruption . | . . . Average Corruption . | . . . Corruption Purged . | . . . Overload Shots . | . . . Overflow Damage . | . . . Projectiles . | . . . Explosions . | . . . Melee . | . . . Knockbacks . | . . . Impact . | . . . Kinetic . | . . . Secondary . | . . . Self-Inflicted Damage . | . . . Shots . | . . . Rammed . | . . . Targets Rammed . | . . . Kicked . | . . . Crushed . | . . . Highest Temperature 20 | 20 10 17 Average Temperature 5 | 9 2 6 Received Heat Transfer 414 | . 273 141 Siege Activations . | . . . Robots Corrupted . | . . . Combat Hostiles . | . . . Parts Fried . | . . . Impact Corruptions . | . . . Robots Melted . | . . . Combat Hostiles . | . . . Parts Melted . | . . . Heat Transferred 150 | 150 . . Parts Sabotaged . | . . . Parts Stolen . | . . . Parts Stripped . | . . . Power Chain Reactions . | . . . Missiles Intercepted . | . . . Alert | -11 -10 -10 ------- Run | Scr Mat Min Peak Influence 326 | 10 326 143 Initial 23 | . 6 23 Average 139 | 3 164 83 Maximum Alert Level 1 | . 1 . Low Security (%) 79 | 100 70 100 Level 1 20 | . 29 . Level 2 . | . . . Level 3 . | . . . Level 4 . | . . . Level 5 . | . . . High Security . | . . . Max Security . | . . . Squads Dispatched 3 | . 3 . Investigation 2 | . 2 . Extermination . | . . . Reinforcement 1 | . 1 . Assault . | . . . Garrison . | . . . Intercept . | . . . Construction Impeded . | . . . Haulers Reinforced . | . . . Stealth | -11 -10 -10 --------- Run | Scr Mat Min Distress Signals 5 | . 5 . Communications Jammed . | . . . Distress Signals . | . . . Times Spotted 36 | . 24 12 Peak Tracking Total 4 | . 4 2 Tactical Retreats 6 | . 2 4 Traps | -11 -10 -10 ------- Run | Scr Mat Min Traps Triggered 2 | . 2 . Indirectly . | . . . Trap Hack Attempts . | . . . Triggered . | . . . Disarmed . | . . . Reprogrammed 12 | . 12 . Reused . | . . . Traps Extracted . | . . . Installed . | . . . Triggered . | . . . Machines | -11 -10 -10 ---------- Run | Scr Mat Min Machines Disabled 2 | . 1 1 Max in Single Turn 1 | . 1 1 Machines Sabotaged . | . . . Garrisons Compromised . | . . . Overloaded Fab Kills . | . . . Fab Network Shutdowns . | . . . Hacking | -11 -10 -10 --------- Run | Scr Mat Min Machines Accessed 10 | . 10 . Terminals 7 | . 7 . Fabricators . | . . . Repair Stations 1 | . 1 . Recycling Units 2 | . 2 . Scanalyzers . | . . . Garrison Access . | . . . Total Hacks 37 | . 37 . Successful 23 | . 23 . Failed 13 | . 13 . Catastrophic 2 | . 2 . Database Lockouts 1 | . 1 . Manual 23 | . 23 . Terminals 28 | . 28 . Fabricators . | . . . Repair Stations 5 | . 5 . Recycling Units 4 | . 4 . Scanalyzers . | . . . Garrison Access . | . . . Terminal Hacks 9 | . 9 . Robot Analysis 1 | . 1 . Prototype ID Bank 1 | . 1 . Branch Access Points 1 | . 1 . Terminal Index 1 | . 1 . Recycling Unit Index 1 | . 1 . Locate Traps 1 | . 1 . Reprogram Traps 2 | . 2 . Zone Layout 1 | . 1 . Fabricator Hacks . | . . . Repair Station Hacks 4 | . 4 . Scan Component 2 | . 2 . Repair 2 | . 2 . Recycling Unit Hacks 2 | . 2 . Retrieve Components 2 | . 2 . Scanalyzer . | . . . Garrison Access Hacks . | . . . Unauthorized Hacks 8 | . 8 . Terminals 7 | . 7 . Botnet 6 | . 6 . Operators 1 | . 1 . Fabricators . | . . . Repair Stations . | . . . Recycling Units 1 | . 1 . Tunnel 1 | . 1 . Scanalyzers . | . . . Garrison Access . | . . . Data Cores Recovered 1 | . 1 . Used 1 | . 1 . Hacking Detections 7 | . 7 . Full Trace Events 3 | . 3 . Feedback Events . | . . . Feedback Blocked . | . . . Robot Schematics Acquired . | . . . Robots Built . | . . . Matter . | . . . Time . | . . . Total Robot Build Rating . | . . . Part Schematics Acquired . | . . . Parts Built . | . . . Matter . | . . . Time . | . . . Total Part Build Rating . | . . . Parts Repaired 2 | . 2 . Time 52 | . 52 . Parts Recycled . | . . . Recycled Matter . | . . . Retrieved Matter . | . . . Retrieved Components 11 | . 11 . Parts Scanalyzed . | . . . Part Schematics Acquired . | . . . Parts Damaged . | . . . Bothacking | -11 -10 -10 ------------ Run | Scr Mat Min Used RIF Installer . | . . . Robots Hacked . | . . . Non-combat . | . . . Combat . | . . . Robot Hacks Applied . | . . . Relay Couplers Released . | . . . Robots Rewired . | . . . Allies Hacked . | . . . Hacks Repelled . | . . . Allies | -11 -10 -10 -------- Run | Scr Mat Min Total Allies . | . . . Largest Group . | . . . Highest-Rated Group . | . . . Highest-Rated Ally . | . . . Total Orders . | . . . Ally Attacks . | . . . Total Damage . | . . . Kills . | . . . Allies Corrupted . | . . . Allies Melted . | . . . Intel | -11 -10 -10 ------- Run | Scr Mat Min Robot Analysis Total 1 | . 1 . Derelict Logs Recovered 1 | . . 1 Drone Launches . | . . . Drone Recoveries . | . . . Exploration | -11 -10 -10 ------------- Run | Scr Mat Min Turns Passed 2279 | 42 1623 614 Spaces Moved 1667 | 31 1167 469 Core 622 | 31 591 . Treads 455 | . 455 . Legs . | . . . Wheels 590 | . 121 469 Hover . | . . . Flight . | . . . Fastest Speed 50 | 50 50 100 Average Speed 100 | 50 102 100 Slowest Speed 180 | 50 180 100 Overloaded Moves . | . . . Propulsion Burnouts . | . . . Robots Hopped . | . . . Cave-ins Triggered . | . . . Exploration Rate (%) 64 | 4 98 90 Regions Visited 2 Branch Regions 1 Pre-discovered Areas 2 | . 1 1 Known Exits Taken 1 | . 1 . Unknown Exits Taken 1 | 1 . . Scrap Searched . | . . . Spaces Dug 9 | . 9 . Terrain Destroyed 21 | . 9 12 Melee . | . . . Projectile . | . . . AOE 21 | . 9 12 Terrain Rammed . | . . . Walls Destroyed . | . . . Machines Disabled . | . . . Actions | -11 -10 -10 --------- Run | Scr Mat Min Total 2025 | 44 1444 537 Wait 150 | . 133 17 Move 1665 | 30 1166 469 Hop . | . . . Pick Up 26 | 4 22 . Fast Attach 18 | 4 13 1 Attach 6 | . 4 2 Detach 3 | . 3 . Swap 8 | . 6 2 Drop 13 | . 12 1 Fire 136 | 6 85 45 Melee . | . . . Ram . | . . . Kick . | . . . Crush . | . . . Escape Stasis . | . . . Rewire . | . . . Trap . | . . . Miscellaneous . | . . . Route ------- -11/Scrapyard -10/Materials (discovered 4 exits: *Mat x3 / *Min) -10/Mines (discovered 2 exits: *Mat x2) History --------- Turn | Location | Event 18 | -11/Scrapyard | Discovered new exit (range 12) 43 | -11/Scrapyard | Entered Materials 51 | -10/Materials | Central database locked down 307 | -10/Materials | Build established: Mutant 384 | -10/Materials | Discovered new exit (range 10) 412 | -10/Materials | Identified exit to Materials 453 | -10/Materials | Identified exit to Mines 475 | -10/Materials | Discovered exit to Materials (range 16) 516 | -10/Materials | Repaired Lgt. Assault Rifle 543 | -10/Materials | Repaired Assault Rifle 1277 | -10/Materials | Discovered exit to Materials (range 5) 1666 | -10/Materials | Entered Mines 1673 | -10/Mines | Core integrity fell below 50% 1777 | -10/Mines | Discovered exit to Materials (range 11) 1894 | -10/Mines | Assembled infested the area 1972 | -10/Mines | Learned location of 1 exit from Materials 2189 | -10/Mines | Discovered exit to Materials (range 10) 2204 | -10/Mines | Learned location of Storage (-7) 2266 | -10/Mines | Core integrity fell below 20% 2280 | -10/Mines | Destroyed by as-86125 with Assembled Blade Last Messages --------------- 02197_ Acquired 4 matter. 02204_ A derelict emerges from the shadows: "Are any of them following you? I'm here trying to lose some heat after our second raid on Storage failed. Whatever you do stay away from that place, they've tightened security following our previous successful raids." World map updated: -7/Storage. 02206_ ZK-8A8(g): "We scattered so the Unaware couldn't effectively use their advantage in numbers, and I suggest you do the same." 02206_ ZK-8A8(g) slips back into the shadows. 02208_ K-01 Serf destroyed. 02209_ Acquired 4 matter. 02226_ U-05 Engineer builds a Wall. 02230_ U-05 Engineer lays Concrete. 02231_ U-05 Engineer builds a Wall. 02237_ U-05 Engineer lays Concrete. 02239_ U-05 Engineer builds a Wall. 02260_ Lgt. Nuclear Core destroyed. 02260_ Assault Rifle destroyed. 02272_ Arm. Wheel destroyed. 02275_ Lgt. Assault Rifle destroyed. Map ----- +----------------------------------------------------+ | #???????# #???# ##???????????????? | | #??????## #### #???????????????? | | #??????# ## #???????????????? | | ##??????# #???????????????? | | ###???????###### #????????????????? | | ???????????????## ##????????????????? | | ????????????????## #?????????????????? | | ?????????????????# #?????????????????? | | ???####?????????## ##????????????????? | | ??## ######?#### ####?????????????? | | ### ## ### #?????????????? | | #????????????? | | #????????????? | | ##### ##????????????? | | ????## ### ####??????#??????? | | ?????## ##?## #???????? ##?????? | | ??????####???## #??????? ##????? | | ???#??????????#=! ##?????## ##???? | | ??# #????????#%! ##???### ##??? | | ?# ???######= ##???# *% ???? | | ? ??## ## ##???? ????? | | ???# ##????? ??????? | | #????# ##???## #????????? | | #????## ##### < #?????????? | | ####### r #?????????? | | a@ #?????????? | | ### ### ##?????????? | | ### ##?## % ##?## #??????????? | | ##?# ##???# ##?? #??????????? | | ##??# ##???## ## #??????????? | | ##### #???## # # #??????????? | | ?# #???# # # # #??????????? | | ?#%|! ##???### # # ## ##??????????? | | ?#%%# #????# # ## ######???????????? | | ?# =# #????# #*#? #????????????????? | | ?# # #???## #!#?# ########?????????? | | ## # #???# # ## ## ##????????? | | % ## ##???# # # ### #????????? | | ######????### #%### """ #????????? | | ### #??????????# #*## """ #????????? | | ??# #??????????## # = = """ #????????? | | ### #???????????# # = * = #????????? | | #???????????# #######*!= ##????????? | | !! #???????????# #?????##*=!*##?????????? | | ###??????#??# #??????##%%##??????????? | | ! ##?? ##?# #???????##%#???????????? | | ! ! ## #?# ????????#%#??###??????? | | #?###????????#%#?# ##?????? | | ## ##????????????#!## #?????? | | # ##?????????????#%#! #?????? | +----------------------------------------------------+ Best States ------------- Heat Dissipation 25 Energy Generation 14 Energy Capacity 250 Matter Stores 300 Matter Capacity 300 Sight Range 16 Robot Scan Range 10 Terrain Scan Density 10 Evasion (%) 50 Targeting Accuracy 5 Recoil Reduction 2 Item Schematics ----------------- None Robot Schematics ------------------ None Fabricated ------------ Nothing Alien Tech Used ----------------- None Achievements -------------- None Challenges ------------ None Game ------ Seed SystemArmoredBlaster Manual? 0 Play Time 00:20:59 Cumulative 439.7 hours Start 2021.07.31 @ 21:02:04 End 2021.07.31 @ 21:22:25 Sessions 1 Manual Loads 0 Difficulty Rogue Special Mode None Game No. 351 Rogue 351 Adventurer 0 Explorer 0 Win Type - Total 1 Types 0/0/0/1/0/0/0/0/0 Lore% 72 Gallery% 82 Achievement% 62 Wizard Run 0 Options --------- ASCII 0 Keyboard 1 Movement Numpad Keybinds 0 Fullscreen 1 Font 12/Terminus Map View 83x54 Tactical HUD 1 Map Filters NONE Filters NONE Steam 1 RUN: 53cf3266-53d6-4fd2-b304-7abfa9a978ff